Cogmind - Beta 16 @@@ ROGUE MODE // 2025.12.26 @ 13:38:52 Player: Moose Result: Self-destructed Performance ------------- Evolutions (2) 1000 Regions Visited (7) 1400 Robots Destroyed (40) 200 Value Destroyed (1191) 1191 Prototype IDs (3) 60 Alien Tech Used (0) 0 Bonus (300) 300 TOTAL SCORE: 4151 Bonus ------- Aligned with FarCom 300 Cogmind --------- Core Integrity 202/550 Matter 16/300 Energy 100/100 System Corruption 0% Temperature Cool (0) Movement Core (700) Ox13 Location -8/Storage Parts ------- > --- POWER (1) -------- (None) > --- PROPULSION (4) --- (None) > --- UTILITY (4) ------ High-capacity Storage Unit Signal Interpreter > --- WEAPON (2) ------- (None) > --- INVENTORY (20) --- Improved Ion Engine Improved Ion Engine Heat Sink High-capacity Storage Unit Compact Battery (200) Medium Matter Pod (100) Particle Charger Actuator Array ECM Suite System Shield Particle Gun Assault Rifle Heavy Assault Rifle EMP Blaster Rocket Launcher Heavy Flail Peak State ------------ > --- POWER ------------ Deuterium Engine > --- PROPULSION ------- Light Treads Light Treads Light Treads Aerolev Unit > --- UTILITY ---------- High-capacity Storage Unit Signal Interpreter Propulsion Shielding Light Armor Plating > --- WEAPON ----------- Heavy Assault Rifle Rocket Launcher > --- INVENTORY -------- Improved Ion Engine Improved Ion Engine Heat Sink High-capacity Storage Unit Medium Matter Pod Particle Charger Actuator Array ECM Suite Medium Laser Beam Rifle Particle Gun Assault Rifle Light Assault Rifle Heavy Assault Rifle Improved Light Cannon [Rating: 20] Favorites ----------- Power Improved Ion Engine Engine Improved Ion Engine Propulsion Light Treads Treads Light Treads Hover Unit Aerolev Unit Utility High-capacity Storage Unit Device ECM Suite Storage High-capacity Storage Unit Processor Signal Interpreter Protection Light Armor Plating Weapon Heavy Assault Rifle Energy Gun Medium Laser Ballistic Gun Heavy Assault Rifle Ballistic Cannon Assault Cannon Launcher Rocket Launcher Build | -11 -10 -9 -9 -9 -8 -8 -8 ------- Run | Yrd Mat Mat Min Exi Min Mat Sto Slots Evolved 4 | . . 2 . . . 2 . Power . | . . . . . . . . Propulsion 2 | . . 2 . . . . . Utility 2 | . . . . . . 2 . Weapon . | . . . . . . . . Parts Attached 25 | 6 3 7 . . 1 6 2 Power 4 | 1 . 1 . . 1 1 . Engine 4 | 1 . 1 . . 1 1 . Core . | . . . . . . . . Reactor . | . . . . . . . . Propulsion 7 | 2 . 3 . . . 2 . Treads 6 | 2 . 3 . . . 1 . Leg . | . . . . . . . . Wheel . | . . . . . . . . Hover 1 | . . . . . . 1 . Flight . | . . . . . . . . Utility 6 | 1 3 . . . . 2 . Device 1 | . 1 . . . . . . Storage 2 | 1 1 . . . . . . Processor 1 | . 1 . . . . . . Hackware . | . . . . . . . . Protection 2 | . . . . . . 2 . Artifact . | . . . . . . . . Weapon 8 | 2 . 3 . . . 1 2 Energy Gun 1 | 1 . . . . . . . Energy Cannon . | . . . . . . . . Ballistic Gun 3 | 1 . 2 . . . . . Ballistic Cannon 2 | . . . . . . . 2 Launcher 2 | . . 1 . . . 1 . Special Weapon . | . . . . . . . . Impact Weapon . | . . . . . . . . Slashing Weapon . | . . . . . . . . Piercing Weapon . | . . . . . . . . Special Melee Weapon . | . . . . . . . . Unidentified Prototypes 1 | . . . . . . 1 . Parts Lost 13 | . . 1 . . 1 8 3 Power 2 | . . . . . 1 . 1 Propulsion 5 | . . 1 . . . 4 . Utility 2 | . . . . . . 2 . Weapon 4 | . . . . . . 2 2 Highest Loss Streak 7 | . . 1 . . 1 7 2 To Critical Strikes . | . . . . . . . . Average Backups 11 | 1 4 12 13 13 12 15 16 Power 1 | . 1 1 2 2 1 1 2 Propulsion . | . . . . . . . . Utility 4 | . 2 5 5 5 5 5 8 Weapon 4 | 1 1 4 6 6 6 7 6 Tool/Special . | . . . . . . . . Unused Backups 23 | 1 . 4 . 3 . 4 11 Power 6 | . . 2 . 3 . . 1 Propulsion 1 | 1 . . . . . . . Utility 9 | . . 2 . . . . 7 Weapon 7 | . . . . . . 4 3 Tool/Special . | . . . . . . . . Average Slot Usage (%) 86 | . 94 86 88 88 87 88 32 Engine 10 | . 14 11 11 11 10 9 2 Treads 28 | . 28 31 33 33 33 25 . Device 1 | . 6 . . . . . . Storage 11 | . 14 11 11 11 11 9 9 Processor 7 | . 1 11 11 11 11 9 9 Protection 3 | . . . . . . 16 . Energy Gun 4 | . 14 2 . . . . . Ballistic Gun 11 | . 14 17 11 11 11 8 . Launcher 5 | . . 2 11 11 11 8 . Peak Build Rating 20 | 6 7 13 12 14 12 20 11 Average Rating 10 | 3 6 10 12 12 11 16 9 On Entrance 8 | . 6 7 12 12 12 12 8 Avg Prop Armor Cover (%) 3 | . . . . . . 3 . Naked Turns . | . . . . . . . . Heaviest Build 62 | 14 54 54 54 54 54 62 50 Greatest Support 80 | 40 40 80 60 60 60 80 3 Greatest Overweight (x) 16 | . 1 1 . . . 16 16 Average Overweight (x) . | . . . . . . . 15 Largest Inventory Capacity 20 | 8 20 20 20 20 20 20 20 Average Capacity 19 | 7 19 20 20 20 20 20 20 Most Carried 20 | 6 8 18 13 16 13 20 18 Average Carried 11 | 2 4 12 13 13 12 15 16 Final Capacity 20 | 8 20 20 20 20 20 20 20 Final Carried 18 | 2 8 13 13 13 12 18 16 Class Distribution -------------------- 58% | Scavenger-Mutant 41% | Mutant Dominant Class ---------------- Mutant | -10/Materials Scavenger-Mutant | -9/Materials Scavenger-Mutant | -9/Mines Scavenger-Mutant | -9/Exiles Scavenger-Mutant | -8/Mines Scavenger-Mutant | -8/Materials Mutant | -8/Storage Resources | -11 -10 -9 -9 -9 -8 -8 -8 ----------- Run | Yrd Mat Mat Min Exi Min Mat Sto Matter Collected 978 | 238 308 157 . . 52 223 . Remotely . | . . . . . . . . Salvage Created 1094 | . 315 227 . . 149 238 165 Parts 61 | . 14 16 . . 6 16 9 Haulers Intercepted 1 | . . . . . . 1 . Recyclers Shooed 2 | . 1 . . . 1 . . Parts Field Recycled . | . . . . . . . . Retrieved Matter . | . . . . . . . . Parts Self-Destructed . | . . . . . . . . Prevented . | . . . . . . . . Parts Restored . | . . . . . . . . Kills | -11 -10 -9 -9 -9 -8 -8 -8 ------- Run | Yrd Mat Mat Min Exi Min Mat Sto Combat Hostiles Destroyed 26 | . 6 9 . . 3 7 1 Guns 13 | . 6 6 . . . 1 . Cannons 1 | . . . . . . . 1 AOE 12 | . . 3 . . 3 6 . Classes Destroyed 11 | . 4 2 . . 2 3 . Builder 2 | . . . . . 1 . 1 Tunneler 1 | . . . . . . 1 . Hauler 1 | . . . . . . 1 . Recycler 3 | . 1 . . . 1 . 1 Mechanic 2 | . 1 . . . . 1 . Watcher 5 | . 1 . . . . 2 2 Swarmer 4 | . . 4 . . . . . Grunt 15 | . 6 3 . . 2 4 . Brawler 1 | . . . . . . 1 . Duelist 1 | . . . . . 1 . . Sentry 5 | . . 2 . . . 2 1 Best Kill Streak 5 | . 3 4 . . 5 4 3 Combat Bots Only 4 | . 3 4 . . 3 4 1 Max Kills in Single Turn 3 | . 1 2 . . 1 3 1 Gunslinging . | . . . . . . . . Exploded 2 | . . 2 . . 1 2 . Melee . | . . . . . . . . Uniques/NPCs Destroyed . | . . . . . . . . Combat | -11 -10 -9 -9 -9 -8 -8 -8 -------- Run | Yrd Mat Mat Min Exi Min Mat Sto Hostile Shots Fired 206 | . 51 48 . . 16 55 36 Missed 58 | . 19 17 . . 5 12 5 Hits 148 | . 32 31 . . 11 43 31 Melee 6 | . . . . . . . 6 Projectile 142 | . 32 31 . . 11 43 25 Critical Strikes 6 | . . . . . . 3 3 Damage Taken 2355 | . 366 343 . . 196 867 583 Core 485 | . 22 64 . . 51 145 203 Absorbed by Shields . | . . . . . . . . Redirected to Shielding 51 | . . . . . . 51 . Core Remaining (%) 87 | 100 91 . . . 71 . . Volleys Fired 81 | . 26 19 . . 10 19 7 Largest 2 | . 2 2 . . 2 2 2 Hottest 74 | . 70 56 . . 56 59 74 Shots Fired 157 | . 51 38 . . 20 34 14 Gun 110 | . 51 34 . . 10 15 . Cannon 14 | . . . . . . . 14 Launcher 33 | . . 4 . . 10 19 . Special . | . . . . . . . . Kinetic 99 | . 26 34 . . 10 15 14 Thermal 25 | . 25 . . . . . . Explosive 33 | . . 4 . . 10 19 . Electromagnetic . | . . . . . . . . Robot Hit Streak 10 | . 10 6 . . 2 7 2 Robot Miss Streak 4 | . 2 4 . . 4 2 2 Penetration Max . | . . . . . . . . Secondary Targets 1 | . . 1 . . . . . Max Gunslinging Chain 1 | . . 1 . . . . . Shots Hit Robots 93 | . 34 22 . . 8 24 5 Core Hits 65 | . 14 14 . . 11 21 5 Critical Kills 1 | . . . . . . 1 . Critical Parts Destroyed . | . . . . . . . . Critical Strikes 5 | . 4 . . . . 1 . Burn 4 | . 4 . . . . . . Destroy 1 | . . . . . . 1 . Melee Attacks . | . . . . . . . . Impact . | . . . . . . . . Slashing . | . . . . . . . . Piercing . | . . . . . . . . Sneak Attacks . | . . . . . . . . Combat Hostiles . | . . . . . . . . Follow-up Attacks . | . . . . . . . . Damage Inflicted 3068 | . 467 599 . . 548 1270 184 Guns 961 | . 443 321 . . 42 155 . Cannons 183 | . . . . . . . 183 Explosions 1856 | . . 262 . . 506 1088 . Melee . | . . . . . . . . Ramming 68 | . 24 16 . . . 27 1 Kinetic 879 | . 178 321 . . 42 155 183 Thermal 265 | . 265 . . . . . . Explosive 1856 | . . 262 . . 506 1088 . Electromagnetic . | . . . . . . . . Impact . | . . . . . . . . Slashing . | . . . . . . . . Piercing . | . . . . . . . . Highest Corruption . | . . . . . . . . Average Corruption . | . . . . . . . . Corruption Purged . | . . . . . . . . Corruption Blocked . | . . . . . . . . Overload Shots . | . . . . . . . . Overflow Damage 61 | . . 6 . . . 55 . Projectiles . | . . . . . . . . Explosions 61 | . . 6 . . . 55 . Melee . | . . . . . . . . Knockbacks . | . . . . . . . . Impact . | . . . . . . . . Kinetic . | . . . . . . . . Secondary . | . . . . . . . . Self-Inflicted Damage 268 | . . 3 . . 24 241 . Shots 11 | . . 1 . . 2 8 . Rammed 12 | . 4 2 . . . 5 1 Targets Rammed 14 | . 6 2 . . . 5 1 Kicked . | . . . . . . . . Crushed 2 | . 2 . . . . . . Highest Temperature 123 | . 123 6 . . 16 23 20 Average Temperature 33 | . 47 3 . . 6 7 9 Received Heat Transfer 912 | . 204 87 . . 99 324 198 Siege Activations . | . . . . . . . . Martial Activations . | . . . . . . . . Shielding Activations . | . . . . . . . . Robots Disrupted . | . . . . . . . . Combat Hostiles . | . . . . . . . . Robots Corrupted . | . . . . . . . . Combat Hostiles . | . . . . . . . . Parts Fried . | . . . . . . . . Impact Corruptions . | . . . . . . . . Robots Melted . | . . . . . . . . Combat Hostiles . | . . . . . . . . Parts Melted 3 | . 3 . . . . . . Heat Transferred 1073 | . 1073 . . . . . . Parts Sabotaged . | . . . . . . . . Parts Stolen . | . . . . . . . . Parts Stripped . | . . . . . . . . Power Chain Reactions . | . . . . . . . . Alert | -11 -10 -9 -9 -9 -8 -8 -8 ------- Run | Yrd Mat Mat Min Exi Min Mat Sto Maximum Alert Level 1 | . . . . . . 1 . Low Security (%) 98 | 100 100 100 100 . 100 92 100 Level 1 1 | . . . . . . 7 . Level 2 . | . . . . . . . . Level 3 . | . . . . . . . . Level 4 . | . . . . . . . . Level 5 . | . . . . . . . . High Security . | . . . . . . . . Max Security . | . . . . . . . . Peak Influence 210 | . 60 165 49 . 81 210 77 Initial 73 | . . 1 49 . . 11 73 Average 36 | . 10 60 17 . 26 66 57 Influence Increases 1026 | . 190 285 . . 111 380 60 Destroy 0b10 Robot/C 520 | . 120 180 . . 60 140 20 Destroy 0b10 Robot/NC 70 | . 15 . . . 10 25 20 Destroy Leader 142 | . 32 40 . . 10 46 14 Successful Hack 33 | . 23 5 . . . 5 . Disable Machine 75 | . . 45 . . . 30 . Destroy Structure 156 | . . 15 . . 31 104 6 Lose Combat Pursuer 30 | . . . . . . 30 . Influence Decreases 1013 | . 185 163 127 . 80 237 221 Entered New Map 203 | . . 4 78 . . 20 101 Time Decay 680 | . 185 149 49 . 70 137 90 Lost Part 130 | . . 10 . . 10 80 30 Squads Dispatched 7 | . 3 1 . . . 3 . Investigation 2 | . 1 1 . . . . . Extermination . | . . . . . . . . Reinforcement 5 | . 2 . . . . 3 . Assault . | . . . . . . . . Garrison . | . . . . . . . . Intercept . | . . . . . . . . Searches Triggered . | . . . . . . . . Construction Impeded 1 | . . . . . . 1 . Haulers Reinforced . | . . . . . . . . Active Scanning Responses . | . . . . . . . . Cargo Convoy Interrupts . | . . . . . . . . Stealth | -11 -10 -9 -9 -9 -8 -8 -8 --------- Run | Yrd Mat Mat Min Exi Min Mat Sto Distress Signals 8 | . 3 1 . . 1 1 2 Communications Jammed . | . . . . . . . . Distress Signals . | . . . . . . . . Times Spotted 49 | . 10 9 . . 3 19 8 Peak Tracking Total 6 | . 3 4 . . 3 6 5 Tactical Retreats 2 | . 1 . . . . 1 . ECM-based Alert Blocks 1 | . 1 . . . . . . Traps | -11 -10 -9 -9 -9 -8 -8 -8 ------- Run | Yrd Mat Mat Min Exi Min Mat Sto Traps Triggered 1 | . . 1 . . . . . Indirectly . | . . . . . . . . Trap Hack Attempts . | . . . . . . . . Triggered . | . . . . . . . . Disarmed . | . . . . . . . . Reprogrammed . | . . . . . . . . Reused . | . . . . . . . . Traps Extracted . | . . . . . . . . Installed . | . . . . . . . . Triggered . | . . . . . . . . Machines | -11 -10 -9 -9 -9 -8 -8 -8 ---------- Run | Yrd Mat Mat Min Exi Min Mat Sto Machines Disabled 5 | . . 3 . . . 2 . Max in Single Turn 2 | . . 2 . . . 1 . Machines Repaired . | . . . . . . . . Machines Dismantled . | . . . . . . . . Machines Sabotaged . | . . . . . . . . Overloaded Fab Kills . | . . . . . . . . Hacking | -11 -10 -9 -9 -9 -8 -8 -8 --------- Run | Yrd Mat Mat Min Exi Min Mat Sto Machines Accessed 8 | . 4 2 . 1 . 1 . Terminals 6 | . 3 2 . . . 1 . Fabricators . | . . . . . . . . Repair Stations . | . . . . . . . . Recycling Units 1 | . 1 . . . . . . Scanalyzers . | . . . . . . . . Garrison Access . | . . . . . . . . Total Hacks 29 | . 11 6 . 9 . 3 . Successful 18 | . 4 3 . 9 . 2 . Failed 11 | . 7 3 . . . 1 . Catastrophic 1 | . 1 . . . . . . Database Lockouts . | . . . . . . . . Manual . | . . . . . . . . Terminals 17 | . 8 6 . . . 3 . Fabricators . | . . . . . . . . Repair Stations . | . . . . . . . . Recycling Units 3 | . 3 . . . . . . Scanalyzers . | . . . . . . . . Garrison Access . | . . . . . . . . Terminal Hacks 17 | . 3 3 . 9 . 2 . Record 9 | . . . . 9 . . . Prototype ID Bank 1 | . . . . . . 1 . Emergency Access Points 1 | . 1 . . . . . . Alert Level 1 | . . 1 . . . . . Dispatch Records 1 | . 1 . . . . . . Transport Status 1 | . . 1 . . . . . Reinforcement Status 1 | . . 1 . . . . . Zone Layout 2 | . 1 . . . . 1 . Fabricator Hacks . | . . . . . . . . Repair Station Hacks . | . . . . . . . . Recycling Unit Hacks 1 | . 1 . . . . . . Report Inventory 1 | . 1 . . . . . . Scanalyzer . | . . . . . . . . Garrison Access Hacks . | . . . . . . . . Unauthorized Hacks . | . . . . . . . . Terminals . | . . . . . . . . Fabricators . | . . . . . . . . Repair Stations . | . . . . . . . . Recycling Units . | . . . . . . . . Scanalyzers . | . . . . . . . . Garrison Access . | . . . . . . . . Data Cores Recovered . | . . . . . . . . Used . | . . . . . . . . Hacking Detections 4 | . 3 1 . . . . . Full Trace Events 3 | . 3 . . . . . . Feedback Events . | . . . . . . . . Feedback Blocked . | . . . . . . . . Robot Schematics Acquired . | . . . . . . . . Robots Built . | . . . . . . . . Authchips . | . . . . . . . . Time . | . . . . . . . . Total Robot Build Rating . | . . . . . . . . Part Schematics Acquired . | . . . . . . . . Parts Built . | . . . . . . . . Authchips . | . . . . . . . . Time . | . . . . . . . . Total Part Build Rating . | . . . . . . . . Part Studies Acquired . | . . . . . . . . Parts Repaired . | . . . . . . . . Time . | . . . . . . . . Parts Recycled . | . . . . . . . . Recycled Matter . | . . . . . . . . Retrieved Matter . | . . . . . . . . Retrieved Components . | . . . . . . . . Parts Scanalyzed . | . . . . . . . . Part Schematics Acquired . | . . . . . . . . Parts Damaged . | . . . . . . . . Bothacking | -11 -10 -9 -9 -9 -8 -8 -8 ------------ Run | Yrd Mat Mat Min Exi Min Mat Sto Used RIF Installer . | . . . . . . . . Robots Hacked . | . . . . . . . . Non-combat . | . . . . . . . . Combat . | . . . . . . . . Robot Hacks Applied . | . . . . . . . . Relay Couplers Released . | . . . . . . . . Fabnet Peak Effective % . | . . . . . . . . Robots Rewired . | . . . . . . . . Allies Hacked . | . . . . . . . . Hacks Repelled . | . . . . . . . . Allies | -11 -10 -9 -9 -9 -8 -8 -8 -------- Run | Yrd Mat Mat Min Exi Min Mat Sto Total Allies . | . . . . . . . . Largest Group . | . . . . . . . . Highest-Rated Group . | . . . . . . . . Highest-Rated Ally . | . . . . . . . . Total Orders . | . . . . . . . . Ally Attacks . | . . . . . . . . Total Damage . | . . . . . . . . Kills . | . . . . . . . . Allies Corrupted . | . . . . . . . . Allies Melted . | . . . . . . . . Intel | -11 -10 -9 -9 -9 -8 -8 -8 ------- Run | Yrd Mat Mat Min Exi Min Mat Sto Active Infowar (turns) 414 | . 414 . . . . . . ECM 414 | . 414 . . . . . . Robot Analysis Total . | . . . . . . . . Derelict Logs Recovered . | . . . . . . . . Drone Launches . | . . . . . . . . Drone Recoveries . | . . . . . . . . Exploration | -11 -10 -9 -9 -9 -8 -8 -8 ------------- Run | Yrd Mat Mat Min Exi Min Mat Sto Turns Passed 3334 | 86 894 407 162 683 286 633 183 Spaces Moved 1551 | 48 333 168 102 425 160 297 18 Core 25 | 5 . . . . . 2 18 Treads 1526 | 43 333 168 102 425 160 295 . Legs . | . . . . . . . . Wheels . | . . . . . . . . Hover . | . . . . . . . . Flight . | . . . . . . . . Fastest Speed 50 | 50 160 160 160 160 160 160 700 Average Speed 192 | 148 238 190 160 160 160 186 841 Slowest Speed 850 | 160 240 240 160 160 160 850 850 Overloaded Moves . | . . . . . . . . Propulsion Burnouts . | . . . . . . . . Robots Hopped . | . . . . . . . . Potential Cave-ins 2 | . . . . . . 2 . Cave-ins Triggered . | . . . . . . . . Exploration Rate (%) 29 | 3 43 17 21 78 44 22 5 Regions Visited 7 Branch Regions 4 Pre-discovered Areas . | . . . . . . . . Known Exits Taken 6 | . 1 1 1 1 1 1 . Unknown Exits Taken 1 | 1 . . . . . . . Scrap Searched . | . . . . . . . . Spaces Dug . | . . . . . . . . Terrain Destroyed 210 | . . 13 . . 52 139 6 Melee . | . . . . . . . . Projectile 6 | . . . . . . . 6 AOE 204 | . . 13 . . 52 139 . Terrain Rammed . | . . . . . . . . Walls Destroyed . | . . . . . . . . Machines Disabled . | . . . . . . . . Actions | -11 -10 -9 -9 -9 -8 -8 -8 --------- Run | Yrd Mat Mat Min Exi Min Mat Sto Total 1729 | 63 376 216 101 430 170 345 28 Wait . | . . . . . . . . Move 1544 | 47 332 167 101 424 159 296 18 Hop . | . . . . . . . . Pick Up 48 | 9 8 14 . 3 . 14 . Fast Attach . | . . . . . . . . Attach 16 | 6 2 2 . . 1 3 2 Detach . | . . . . . . . . Swap 9 | . 1 5 . . . 3 . Drop 17 | 1 1 7 . 3 . 5 . Fire 81 | . 26 19 . . 10 19 7 Melee . | . . . . . . . . Ram 1 | . . . . . . . 1 Kick . | . . . . . . . . Crush 13 | . 6 2 . . . 5 . Escape Stasis . | . . . . . . . . Rewire . | . . . . . . . . Trap . | . . . . . . . . Miscellaneous . | . . . . . . . . Route ------- -11/Scrapyard -10/Materials -9/Materials -9/Mines -9/Exiles -8/Mines -8/Materials -8/Storage History --------- Turn | Location | Event 2 | -11/Scrapyard | Met Revision 17 13 | -11/Scrapyard | Discovered new exit (range 15) 87 | -11/Scrapyard | Entered Materials 88 | -10/Materials | Met a group of wandering Federalists 312 | -10/Materials | Build established: Mutant 851 | -10/Materials | Discovered new exit (range 15) 955 | -10/Materials | Identified exit to Materials 981 | -10/Materials | Entered another Materials area 981 | -9/Materials | Evolved 2 slots: Propulsion x2 1364 | -9/Materials | Discovered new exit (range 16) 1386 | -9/Materials | Identified exit to Mines 1388 | -9/Materials | Entered Mines 1435 | -9/Mines | Met a Derelict bent on vengeance 1464 | -9/Mines | Build established: Scavenger-Mutant 1539 | -9/Mines | Deemed a non-threat by the Exiles lab entrance 1540 | -9/Mines | Discovered new exit (range 5) 1547 | -9/Mines | Identified exit to Exiles 1550 | -9/Mines | Entered Exiles 1595 | -9/Exiles | Discovered new exit (range 14) 1616 | -9/Exiles | Met 8R-AWN 1661 | -9/Exiles | Met EX-HEX 1709 | -9/Exiles | Met EX-BIN 1742 | -9/Exiles | Aligned with FarCom system 1744 | -9/Exiles | Given EX-Vault access code 1862 | -9/Exiles | Met EX-DEC 1916 | -9/Exiles | Visited The Gauntlet 2232 | -9/Exiles | Identified exit to Mines 2233 | -9/Exiles | Entered Mines 2504 | -8/Mines | Discovered new exit (range 9) 2516 | -8/Mines | Identified exit to Materials 2519 | -8/Mines | Entered Materials 2519 | -8/Materials | Evolved 2 slots: Utility x2 2878 | -8/Materials | Discovered new exit (range 16) 3140 | -8/Materials | Identified exit to Storage 3152 | -8/Materials | Entered Storage 3172 | -8/Storage | Lost 7 parts (3n2u2w) 3334 | -8/Storage | Core integrity fell below 50% 3335 | -8/Storage | Self-destructed Last Messages --------------- Critical hit (Burn: +37). Y-45 Defender destroyed. R-06 Scavenger collects Terrain Scan Processor. R-06 Scavenger collects Tractor Beam. W-25 Informer destroyed. K-01 Serf collects debris. W-25 Informer destroyed. K-01 Serf collects debris. R-06 Scavenger collects Lgt. Deuterium Engine. K-01 Serf collects debris. Slammed into L-31 Rogue. K-01 Serf collects debris. R-06 Scavenger collects Imp. Hover Unit. K-01 Serf collects debris. Assault Cannon destroyed. K-01 Serf collects debris. Assault Cannon destroyed. R-06 Scavenger collects Com. Wheel. K-01 Serf collects debris. R-06 Scavenger collects Lgt. Treads. Map ----- +----------------------------------------------------+ | ?????????????????????????????????? | | ?????????????????????????????????? | | ?????????????????????????????????? | | ?????????????????????????????????? | | ???????#####?????????????????????? | | ???????# ^^#?????????????????????? | | ???????#^^^#?????????????????????? | | ???????# #?????????????????????? | | ???????# #?????????????????????? | | ???????# #?????????????????????? | | ???????# #?????????????????????? | | ???????# #?????????????????????? | | ???????# #?????????????????????? | | ???????# #?????????????????????? | | ???????# #?????????????????????? | | ??????## #?????????????????????? | | ??????#; #?????????????????????? | | ??????## #?????????????????????? | | ???????# #?????????????????????? | | ?????### #?????????????????????? | | ?????" ; +?????????????????????? | | ?????#T# k #?????????????????????? | | ?????##; #?????????????????????? | | ??????#; #?????????????????????? | | ??????##! l#?????????????????????? | | ???????#%@ #?????????????????????? | | ???????#rgg#?????????????????????? | | ???????#% %#?????????????????????? | | ???????# #?????????????????????? | | ???????;% #?????????????????????? | | ???????+ #?????????????????????? | | ???????#% #?????????????????????? | | ???????# % #?????????????????????? | | ???????#% #?????????????????????? | | ???????# % #?????????????????????? | | ???????# #?????????????????????? | | ???????#% #????????Y????????????? | | ???????# #?????????????????????? | | ????????Y ??????????????????????? | | ???????? ??????????????????????? | | ???????? ??????????????????????? | | ?????????????????????????????????? | | ?????????????????????????????????? | | ?????????????????????????????????? | | ?????????????????????????????????? | | ?????????????????????????????????? | | ?????????????????????????????????? | | ?????????????????????????????????? | | ?????????????????????????????????? | | ?????????????????????????????????? | +----------------------------------------------------+ Best States ------------- Heat Dissipation 31 Energy Generation 14 Energy Capacity 275 Matter Stores 300 Matter Capacity 300 Sight Range 16 Terrain Scan Density 10 ECM Strength 1 Armor Coverage 150 Propulsion Shielding 33 Evasion (%) 40 Recoil Reduction 4 Item Schematics ----------------- None Robot Schematics ------------------ None Fabricated ------------ Nothing Repaired ---------- Nothing Studied --------- None Alien Tech Used ----------------- None Achievements -------------- Sixth Sense Tourist Challenges ------------ None Game ------ Seed DisassembledLightFlail Manual? 0 Play Time 00:23:15 Cumulative 6.1 hours Start 2025.12.26 @ 08:00:59 End 2025.12.26 @ 13:38:52 Sessions 1 Manual Loads 0 Difficulty Rogue Special Mode None Game No. 15 Rogue 15 Adventurer 0 Explorer 0 Win Type - Total 0 Types 0/0/0/0/0/0/0/0/0/0 Lore% 2 Gallery% 10 Achievement% 11 Wizard Run 0 Options --------- Layout 1 ASCII 0 Keyboard 0 Movement Arrows Keybinds 0 Fullscreen 1 Font 16/SmallcapsGlow Map View 55x38 Zoom Use 0% Tactical HUD 0 Map Filters NONE Filters NONE Steam 1 RUN: 8a7b07bc-6e00-495c-a431-2b44d614babb